Cogmind - Beta 13 *** ADVENTURER MODE // 2024.04.03 @ 11:14:22 Player: Plonker Result: Destroyed by H-66 Slayer with Gauss Rifle Performance ------------- Evolutions (4) 2000 Regions Visited (7) 1400 Robots Destroyed (31) 155 Value Destroyed (1038) 1038 Prototype IDs (9) 180 Alien Tech Used (0) 0 Bonus (0) 0 TOTAL SCORE: 4773 Bonus ------- None Cogmind --------- Core Integrity 0/850 Matter 275/300 Energy 100/100 System Corruption 0% Temperature Cool (0) Movement Core (350) Ox6 Location -6/Lower Caves Parts ------- > --- POWER (1) -------- (None) > --- PROPULSION (4) --- (None) > --- UTILITY (7) ------ Medium Storage Unit Medium Storage Unit Machine Analyzer Improved Salvage Targeting Computer > --- WEAPON (3) ------- (None) > --- INVENTORY (10) --- (None) Peak State ------------ > --- POWER ------------ Improved Ion Engine > --- PROPULSION ------- Gravmag System VTOL Module Cooled VTOL Module > --- UTILITY ---------- Machine Analyzer Improved Terrain Scanner Improved Salvage Targeting Computer Improved Targeting Computer Component Analysis Suite Recalibrator > --- WEAPON ----------- Phase Cannon Gauss Rifle Rocket Launcher > --- INVENTORY -------- (None) [Rating: 44] Favorites ----------- Power Improved Ion Engine Engine Improved Ion Engine Propulsion VTOL Module Treads Light Treads Wheel Compact Wheel Hover Unit Improved Hover Unit Flight Unit VTOL Module Utility Improved Targeting Computer Device Improved Terrain Scanner Storage Small Storage Unit Processor Improved Targeting Computer Protection Light Armor Plating Weapon Rocket Launcher Energy Gun Medium Laser Energy Cannon Phase Cannon Ballistic Gun Light Assault Rifle Ballistic Cannon Light Cannon Launcher Rocket Launcher Build | -11 -10 -10 -9 -8 -7 -6 -6 ------- Run | Yrd Mat Min Mat Mat Fac Fac Low Slots Evolved 8 | . . . 2 2 2 2 . Power . | . . . . . . . . Propulsion 2 | . . . . 2 . . . Utility 5 | . . . 2 . 2 1 . Weapon 1 | . . . . . . 1 . Parts Attached 50 | 6 6 1 17 1 9 4 6 Power 6 | 1 . . 3 . . 1 1 Engine 6 | 1 . . 3 . . 1 1 Core . | . . . . . . . . Reactor . | . . . . . . . . Propulsion 13 | 2 2 . 4 . 2 2 1 Treads 2 | . . . 2 . . . . Leg . | . . . . . . . . Wheel 2 | 2 . . . . . . . Hover 3 | . 2 . . . 1 . . Flight 6 | . . . 2 . 1 2 1 Utility 14 | 1 2 . 3 1 4 . 3 Device 6 | . 1 . 1 . 3 . 1 Storage 3 | 1 . . . . . . 2 Processor 4 | . 1 . 1 1 1 . . Hackware . | . . . . . . . . Protection 1 | . . . 1 . . . . Artifact . | . . . . . . . . Weapon 17 | 2 2 1 7 . 3 1 1 Energy Gun 5 | 2 1 1 1 . . . . Energy Cannon 2 | . . . . . . 1 1 Ballistic Gun 7 | . . . 4 . 3 . . Ballistic Cannon 1 | . . . 1 . . . . Launcher 2 | . 1 . 1 . . . . Special Weapon . | . . . . . . . . Impact Weapon . | . . . . . . . . Slashing Weapon . | . . . . . . . . Piercing Weapon . | . . . . . . . . Special Melee Weapon . | . . . . . . . . Unidentified Prototypes . | . . . . . . . . Parts Lost 20 | . 1 . 4 . 1 . 14 Power 2 | . . . . . . . 2 Propulsion 6 | . 1 . 1 . 1 . 3 Utility 6 | . . . 1 . . . 5 Weapon 6 | . . . 2 . . . 4 Highest Loss Streak 12 | . 1 . 2 . 1 . 12 To Critical Strikes . | . . . . . . . . Average Slot Usage (%) 76 | . 93 100 80 61 68 79 66 Engine 9 | . 14 14 11 9 7 5 4 Treads 1 | . . . 3 . . . . Hover 4 | . 11 28 3 . . 1 . Flight 12 | . . . 14 18 16 12 14 Device 9 | . 5 . 10 . 8 20 18 Storage 3 | . 14 14 4 . . . . Processor 14 | . 3 14 11 16 19 20 18 Energy Gun 5 | . 16 14 7 . . . . Energy Cannon 1 | . . . . . . 5 4 Ballistic Gun 6 | . . . 9 9 7 6 4 Ballistic Cannon 1 | . . . 3 . . . . Launcher 5 | . 11 14 1 9 7 6 . Naked Turns . | . . . . . . . . Heaviest Build 28 | 11 14 14 23 12 18 28 26 Greatest Support 40 | 26 26 14 40 8 13 9 13 Greatest Overweight (x) 6 | . . . 5 1 1 3 6 Average Overweight (x) . | . . . . 1 . 2 1 Largest Inventory Capacity 10 | 8 8 8 8 5 5 5 10 Average Capacity 5 | 7 8 8 6 5 5 5 5 Most Carried 8 | 5 7 8 7 1 2 2 1 Average Carried 1 | 2 4 6 1 . . . . Final Capacity 10 | 8 8 8 5 5 5 5 10 Final Carried 6 | 2 6 6 . . . . . Class Distribution -------------------- 88% | Mutant 6% | Skirmisher 5% | Scavenger-Mutant Dominant Class ---------------- Mutant | -10/Materials Mutant | -10/Mines Mutant | -9/Materials Mutant | -8/Materials Mutant | -7/Factory Skirmisher | -6/Factory Mutant | -6/Lower Caves Resources | -11 -10 -10 -9 -8 -7 -6 -6 ----------- Run | Yrd Mat Min Mat Mat Fac Fac Low Matter Collected 934 | 196 94 19 346 . 94 . 185 Remotely . | . . . . . . . . Salvage Created 1092 | . 216 34 516 . 25 . 301 Parts 65 | . 13 4 31 . 1 . 16 Haulers Intercepted . | . . . . . . . . Recyclers Shooed 1 | . . . 1 . . . . Parts Field Recycled . | . . . . . . . . Retrieved Matter . | . . . . . . . . Parts Self-Destructed 15 | . . . . . . . 15 Prevented . | . . . . . . . . Kills | -11 -10 -10 -9 -8 -7 -6 -6 ------- Run | Yrd Mat Min Mat Mat Fac Fac Low Combat Hostiles Destroyed 28 | . 6 1 12 . 1 . 8 Guns 14 | . 1 1 7 . 1 . 4 Cannons 9 | . . . 5 . . . 4 AOE 5 | . 5 . . . . . . Classes Destroyed 7 | . 2 . 3 . 1 . 1 Builder 1 | . 1 . . . . . . Watcher 2 | . . . 2 . . . . Swarmer 8 | . . . 2 . . . 6 Grunt 14 | . 6 1 6 . . . 1 Brawler 1 | . . . . . . . 1 Sentry 4 | . . . 4 . . . . Programmer 1 | . . . . . 1 . . Best Kill Streak 4 | . 4 1 3 . 1 . 4 Combat Bots Only 4 | . 4 1 2 . 1 . 4 Max Kills in Single Turn 3 | . 3 1 1 . 1 . 1 Gunslinging . | . . . . . . . . Exploded 3 | . 3 . . . . . . Melee . | . . . . . . . . Uniques/NPCs Destroyed . | . . . . . . . . Combat | -11 -10 -10 -9 -8 -7 -6 -6 -------- Run | Yrd Mat Min Mat Mat Fac Fac Low Hostile Shots Fired 392 | . 28 . 103 10 44 . 207 Missed 134 | . 10 . 32 4 20 . 68 Damage Taken 2812 | . 216 . 725 68 158 . 1645 Core 1256 | . 24 . 295 11 67 . 859 Absorbed by Shields . | . . . . . . . . Ignored by Resistances 822 | . 65 . 210 20 54 . 473 Core Remaining (%) 80 | 100 . 90 26 98 90 . . Volleys Fired 94 | . 14 2 49 4 9 . 16 Largest 2 | . 2 1 2 1 2 . 2 Hottest 113 | . 90 50 70 20 61 . 113 Shots Fired 152 | . 22 2 84 4 13 . 27 Gun 112 | . 18 2 64 4 9 . 15 Cannon 31 | . . . 19 . . . 12 Launcher 9 | . 4 . 1 . 4 . . Special . | . . . . . . . . Kinetic 82 | . . . 54 4 9 . 15 Thermal 52 | . 18 . 23 . . . 11 Explosive 9 | . 4 . 1 . 4 . . Electromagnetic 9 | . . 2 6 . . . 1 Robot Hit Streak 25 | . 9 7 25 3 4 . 20 Robot Miss Streak 2 | . 1 . 1 1 2 . 1 Penetration Max . | . . . . . . . . Secondary Targets . | . . . . . . . . Shots Hit Robots 127 | . 16 2 74 3 9 . 23 Core Hits 56 | . 15 1 25 . 3 . 12 Critical Kills . | . . . . . . . . Critical Parts Destroyed . | . . . . . . . . Critical Strikes 5 | . 2 . 3 . . . . Burn 4 | . 2 . 2 . . . . Blast 1 | . . . 1 . . . . Melee Attacks . | . . . . . . . . Impact . | . . . . . . . . Slashing . | . . . . . . . . Piercing . | . . . . . . . . Sneak Attacks . | . . . . . . . . Combat Hostiles . | . . . . . . . . Follow-up Attacks . | . . . . . . . . Damage Inflicted 2271 | . 466 35 1021 24 159 . 566 Guns 1252 | . 171 35 687 24 90 . 245 Cannons 634 | . . . 313 . . . 321 Explosions 383 | . 295 . 19 . 69 . . Melee . | . . . . . . . . Ramming 2 | . . . 2 . . . . Kinetic 1020 | . . . 661 24 90 . 245 Thermal 717 | . 171 . 249 . . . 297 Explosive 383 | . 295 . 19 . 69 . . Electromagnetic 149 | . . 35 90 . . . 24 Impact . | . . . . . . . . Slashing . | . . . . . . . . Piercing . | . . . . . . . . Highest Corruption 1 | . 1 1 . . 1 . . Average Corruption 1 | . 1 1 . . 1 . . Corruption Purged . | . . . . . . . . Corruption Blocked . | . . . . . . . . Effects 1 | . . 1 . . . . . Heat Flow Errors 1 | . . 1 . . . . . Overload Shots . | . . . . . . . . Overflow Damage 9 | . . . 5 . . . 4 Projectiles 9 | . . . 5 . . . 4 Explosions . | . . . . . . . . Melee . | . . . . . . . . Knockbacks 7 | . . . 7 . . . . Impact . | . . . . . . . . Kinetic 7 | . . . 7 . . . . Secondary . | . . . . . . . . Self-Inflicted Damage 1 | . . . 1 . . . . Shots . | . . . . . . . . Rammed 3 | . . . 3 . . . . Targets Rammed 3 | . . . 3 . . . . Kicked . | . . . . . . . . Crushed . | . . . . . . . . Highest Temperature 233 | . 233 208 220 . . . 147 Average Temperature 66 | . 132 84 47 . . . 64 Received Heat Transfer 1125 | . 126 . 318 27 30 . 624 Siege Activations . | . . . . . . . . Robots Corrupted . | . . . . . . . . Combat Hostiles . | . . . . . . . . Parts Fried 1 | . . . 1 . . . . Impact Corruptions . | . . . . . . . . Robots Melted . | . . . . . . . . Combat Hostiles . | . . . . . . . . Parts Melted 4 | . . . 4 . . . . Heat Transferred 1888 | . 630 . 888 . . . 370 Parts Sabotaged . | . . . . . . . . Parts Stolen . | . . . . . . . . Parts Stripped . | . . . . . . . . Power Chain Reactions . | . . . . . . . . Alert | -11 -10 -10 -9 -8 -7 -6 -6 ------- Run | Yrd Mat Min Mat Mat Fac Fac Low Peak Influence 321 | . 180 79 321 107 78 26 . Initial 59 | . . 59 25 12 41 26 . Average 100 | . 104 63 178 56 51 26 . Maximum Alert Level 1 | . . . 1 . . . . Low Security (%) 87 | 100 100 100 66 100 100 100 . Level 1 12 | . . . 33 . . . . Level 2 . | . . . . . . . . Level 3 . | . . . . . . . . Level 4 . | . . . . . . . . Level 5 . | . . . . . . . . High Security . | . . . . . . . . Max Security . | . . . . . . . . Squads Dispatched 6 | . . 1 4 . 1 . . Investigation 4 | . . 1 2 . 1 . . Extermination . | . . . . . . . . Reinforcement 2 | . . . 2 . . . . Assault . | . . . . . . . . Garrison . | . . . . . . . . Intercept . | . . . . . . . . Searches Triggered . | . . . . . . . . Construction Impeded . | . . . . . . . . Haulers Reinforced . | . . . . . . . . Active Scanning Responses . | . . . . . . . . Cargo Convoy Interrupts . | . . . . . . . . Stealth | -11 -10 -10 -9 -8 -7 -6 -6 --------- Run | Yrd Mat Min Mat Mat Fac Fac Low Distress Signals 3 | . . . 2 1 . . . Communications Jammed . | . . . . . . . . Distress Signals . | . . . . . . . . Times Spotted 63 | . 6 1 27 6 3 . 20 Peak Tracking Total 10 | . 4 1 5 4 1 . 10 Tactical Retreats 6 | . . . 3 1 . . 2 Traps | -11 -10 -10 -9 -8 -7 -6 -6 ------- Run | Yrd Mat Min Mat Mat Fac Fac Low Traps Triggered 3 | . 2 . 1 . . . . Indirectly . | . . . . . . . . Trap Hack Attempts . | . . . . . . . . Triggered . | . . . . . . . . Disarmed . | . . . . . . . . Reprogrammed 1 | . . . 1 . . . . Reused 1 | . . . 1 . . . . Traps Extracted . | . . . . . . . . Installed . | . . . . . . . . Triggered 1 | . . . 1 . . . . Machines | -11 -10 -10 -9 -8 -7 -6 -6 ---------- Run | Yrd Mat Min Mat Mat Fac Fac Low Machines Disabled . | . . . . . . . . Max in Single Turn . | . . . . . . . . Machines Repaired . | . . . . . . . . Machines Dismantled . | . . . . . . . . Machines Sabotaged . | . . . . . . . . Overloaded Fab Kills . | . . . . . . . . Hacking | -11 -10 -10 -9 -8 -7 -6 -6 --------- Run | Yrd Mat Min Mat Mat Fac Fac Low Machines Accessed 12 | . 4 1 3 2 2 . . Terminals 9 | . 3 . 3 2 1 . . Fabricators . | . . . . . . . . Repair Stations . | . . . . . . . . Recycling Units 1 | . 1 . . . . . . Scanalyzers 1 | . . . . . 1 . . Garrison Access . | . . . . . . . . Total Hacks 43 | . 12 1 15 9 6 . . Successful 34 | . 8 1 15 7 3 . . Failed 9 | . 4 . . 2 3 . . Catastrophic 2 | . 2 . . . . . . Database Lockouts . | . . . . . . . . Manual . | . . . . . . . . Terminals 36 | . 9 . 15 9 3 . . Fabricators . | . . . . . . . . Repair Stations . | . . . . . . . . Recycling Units 3 | . 3 . . . . . . Scanalyzers 3 | . . . . . 3 . . Garrison Access . | . . . . . . . . Terminal Hacks 30 | . 6 1 15 7 1 . . Record 8 | . 3 . 3 2 . . . Robot Analysis 1 | . . . . 1 . . . Prototype ID Bank 4 | . . . 1 2 1 . . Open Door 1 | . . 1 . . . . . Level Access Points 1 | . 1 . . . . . . Emergency Access Points 2 | . . . 2 . . . . Alert Level 4 | . 1 . 2 1 . . . Unreport Threat 1 | . . . 1 . . . . Locate Traps 1 | . . . 1 . . . . Reprogram Traps 1 | . . . 1 . . . . Dispatch Records 1 | . . . 1 . . . . Surveillance Status 1 | . . . 1 . . . . Reinforcement Status 1 | . . . 1 . . . . Hauler Manifests 1 | . . . 1 . . . . Registered Components 1 | . . . . 1 . . . Zone Layout 1 | . 1 . . . . . . Fabricator Hacks . | . . . . . . . . Repair Station Hacks . | . . . . . . . . Recycling Unit Hacks 2 | . 2 . . . . . . Retrieve Matter 1 | . 1 . . . . . . Retrieve Components 1 | . 1 . . . . . . Scanalyzer 2 | . . . . . 2 . . Insert Component 1 | . . . . . 1 . . Analyze 1 | . . . . . 1 . . Garrison Access Hacks . | . . . . . . . . Unauthorized Hacks . | . . . . . . . . Terminals . | . . . . . . . . Fabricators . | . . . . . . . . Repair Stations . | . . . . . . . . Recycling Units . | . . . . . . . . Scanalyzers . | . . . . . . . . Garrison Access . | . . . . . . . . Data Cores Recovered . | . . . . . . . . Used . | . . . . . . . . Hacking Detections 10 | . 4 . 2 2 2 . . Full Trace Events 4 | . 2 . 1 . 1 . . Feedback Events . | . . . . . . . . Feedback Blocked . | . . . . . . . . Robot Schematics Acquired . | . . . . . . . . Robots Built . | . . . . . . . . Authchips . | . . . . . . . . Time . | . . . . . . . . Total Robot Build Rating . | . . . . . . . . Part Schematics Acquired 1 | . . . . . 1 . . Parts Built . | . . . . . . . . Authchips . | . . . . . . . . Time . | . . . . . . . . Total Part Build Rating . | . . . . . . . . Parts Repaired . | . . . . . . . . Time . | . . . . . . . . Parts Recycled . | . . . . . . . . Recycled Matter . | . . . . . . . . Retrieved Matter . | . . . . . . . . Retrieved Components 3 | . 3 . . . . . . Parts Scanalyzed 1 | . . . . . 1 . . Part Schematics Acquired 1 | . . . . . 1 . . Parts Damaged . | . . . . . . . . Bothacking | -11 -10 -10 -9 -8 -7 -6 -6 ------------ Run | Yrd Mat Min Mat Mat Fac Fac Low Used RIF Installer . | . . . . . . . . Robots Hacked . | . . . . . . . . Non-combat . | . . . . . . . . Combat . | . . . . . . . . Robot Hacks Applied . | . . . . . . . . Relay Couplers Released . | . . . . . . . . Fabnet Peak Effective % . | . . . . . . . . Robots Rewired . | . . . . . . . . Allies Hacked . | . . . . . . . . Hacks Repelled . | . . . . . . . . Allies | -11 -10 -10 -9 -8 -7 -6 -6 -------- Run | Yrd Mat Min Mat Mat Fac Fac Low Total Allies . | . . . . . . . . Largest Group . | . . . . . . . . Highest-Rated Group . | . . . . . . . . Highest-Rated Ally . | . . . . . . . . Total Orders . | . . . . . . . . Ally Attacks . | . . . . . . . . Total Damage . | . . . . . . . . Kills . | . . . . . . . . Allies Corrupted . | . . . . . . . . Allies Melted . | . . . . . . . . Intel | -11 -10 -10 -9 -8 -7 -6 -6 ------- Run | Yrd Mat Min Mat Mat Fac Fac Low Robot Analysis Total 1 | . . . . 1 . . . Derelict Logs Recovered . | . . . . . . . . Drone Launches . | . . . . . . . . Drone Recoveries . | . . . . . . . . Exploration | -11 -10 -10 -9 -8 -7 -6 -6 ------------- Run | Yrd Mat Min Mat Mat Fac Fac Low Turns Passed 2538 | 110 155 240 817 283 424 152 357 Spaces Moved 2183 | 109 146 414 534 245 372 78 285 Core 79 | 14 . . . . . . 65 Treads 60 | . . . 60 . . . . Legs . | . . . . . . . . Wheels 154 | 95 59 . . . . . . Hover 604 | . 87 414 81 . 1 21 . Flight 1286 | . . . 393 245 371 57 220 Fastest Speed 29 | 50 56 56 56 112 29 120 35 Average Speed 99 | 84 70 56 119 112 103 185 105 Slowest Speed 435 | 90 100 56 435 112 120 248 350 Overloaded Moves . | . . . . . . . . Propulsion Burnouts . | . . . . . . . . Robots Hopped . | . . . . . . . . Cave-ins Triggered . | . . . . . . . . Exploration Rate (%) 31 | 5 38 91 40 19 11 2 42 Regions Visited 7 Branch Regions 2 Pre-discovered Areas . | . . . . . . . . Known Exits Taken 1 | . . 1 . . . . . Unknown Exits Taken 6 | 1 1 . 1 1 1 1 . Scrap Searched 3 | . . 1 . . . . 2 Spaces Dug . | . . . . . . . . Terrain Destroyed 88 | . 31 . 17 . 39 . 1 Melee . | . . . . . . . . Projectile 2 | . . . . . 1 . 1 AOE 86 | . 31 . 17 . 38 . . Terrain Rammed . | . . . . . . . . Walls Destroyed . | . . . . . . . . Machines Disabled . | . . . . . . . . Actions | -11 -10 -10 -9 -8 -7 -6 -6 --------- Run | Yrd Mat Min Mat Mat Fac Fac Low Total 2408 | 126 176 420 635 250 399 89 313 Wait 4 | 4 . . . . . . . Move 2176 | 108 145 413 533 244 371 77 285 Hop . | . . . . . . . . Pick Up 52 | 8 8 2 15 1 8 4 6 Fast Attach . | . . . . . . . . Attach 39 | 6 4 . 12 1 6 4 6 Detach 2 | . 1 . 1 . . . . Swap 11 | . 2 1 5 . 3 . . Drop 27 | . 2 2 17 . 2 4 . Fire 94 | . 14 2 49 4 9 . 16 Melee . | . . . . . . . . Ram 3 | . . . 3 . . . . Kick . | . . . . . . . . Crush . | . . . . . . . . Escape Stasis . | . . . . . . . . Rewire . | . . . . . . . . Trap . | . . . . . . . . Miscellaneous . | . . . . . . . . Route ------- -11/Scrapyard -10/Materials (discovered 4 exits: Mat x3 / *Min) -10/Mines (discovered 2 exits: *Mat x2) -9/Materials -8/Materials -7/Factory -6/Factory -6/Lower Caves History --------- Turn | Location | Event 11 | -11/Scrapyard | Discovered new exit (range 15) 111 | -11/Scrapyard | Entered Materials 250 | -10/Materials | Discovered new exit (range 9) 257 | -10/Materials | Identified exit to Materials 266 | -10/Materials | Entered Mines 305 | -10/Mines | Build established: Mutant 341 | -10/Mines | Discovered exit to Materials (range 6) 385 | -10/Mines | Found a hidden stash of uninstalled traps 419 | -10/Mines | Met a Derelict shopkeep closing up shop 455 | -10/Mines | Discovered exit to Materials (range 8) 473 | -10/Mines | A weapon hastily lodged in a ceiling crevice suddenly fell to the ground 506 | -10/Mines | Entered Materials 506 | -9/Materials | Evolved 2 slots: Utility x2 1255 | -9/Materials | Core integrity fell below 50% 1308 | -9/Materials | Discovered new exit (range 11) 1323 | -9/Materials | Entered another Materials area 1323 | -8/Materials | Evolved 2 slots: Propulsion x2 1417 | -8/Materials | Discovered new exit (range 5) 1606 | -8/Materials | Entered Factory 1606 | -7/Factory | Evolved 2 slots: Utility x2 1926 | -7/Factory | Discovered new exit (range 12) 2030 | -7/Factory | Entered another Factory area 2030 | -6/Factory | Evolved 2 slots: Utility x1, Weapon x1 2135 | -6/Factory | Discovered new exit (range 15) 2182 | -6/Factory | Entered Lower Caves 2406 | -6/Lower Caves | Attracted the attention of an 0b10 checkpoint 2461 | -6/Lower Caves | Core integrity fell below 50% 2503 | -6/Lower Caves | Lost 12 parts (2p3n5u2w) 2520 | -6/Lower Caves | Core integrity fell below 20% 2539 | -6/Lower Caves | Destroyed by H-66 Slayer with Gauss Rifle Last Messages --------------- 02464_ Lgt. Angular Momentum Engine destroyed. 02464_ Cld. VTOL Module destroyed. 02472_ Imp. Terrain Scanner destroyed. 02473_ Critical hit (Burn: +37). 02483_ Acquired Imp. EM Pulse Cannon. 02506_ S-27 Virus springs to life. 02510_ S-27 Virus destroyed. 02522_ Imp. EM Pulse Cannon destroyed. 02523_ Autogun fries itself beyond repair. 02523_ Acquired Med. Storage Unit. Note that some effects don't stack, e.g. attaching both Med. Storage Unit and Med. Storage Unit does not combine the two effects (all such effects are marked ). 02532_ G-50 Soldier destroyed. 02533_ Penetrated by Slug. 02538_ Adv. Heat Sink fries itself beyond repair. 02539_ Slug penetrates S-27 Virus. 02539_ Slug penetrates Wall. Map ----- +----------------------------------------------------+ | ?????????????????????????????????????????????????? | | ?????????????????????????????????????????????????? | | ???????????????????????????????????#?????????????? | | ???????????????????????? ????????????????????????? | | ????????????????????????? ???????????????????????? | | ????????????????????????? ???????????#??????????#? | | ????????????????????#????# ?????????????#????????? | | ?????????????????????????# ??????????????????????? | | ?????????????????????#???# ?#################???? | | ?????????????????????# ??# ?# ##### | | ???????????????? ### ## ## | | ?????????????????# # #####+##+## | | ????????????????????# # #" "# | | ???????????????????????# #" "# | | ???????????????????????## #" "# | | ????????????????????????# #### #" "# | | ?????????????????????####????# # "# ## | | ????????????????????## #??#?# #""" "# ##### | | ????????????????????# ###?# #""" T"# #?#?? | | ???????????????????## ### #""" "# #???? | | ???????????????????# ## #??" """# #???? | | ???????????????????# #####+##### ##??# | | ??????????????????## s % #??? | | ?????????????# ### sh*%= #??? | | ?????????????# ##### ### #### ##??? | | ?????????????# @ ##???####?# #???#????? | | ?????????????##### ##????????## #????????? | | ?????????????????## #?????##### #??#???#?? | | ??????????????????# ## ?###### #??????#?? | | ??????????????????# ??# ?# ###????????? | | ?????????????????# ???# #?## ##?????##???? | | ??????????????????????# #?### % ###???? #???? | | ?????????????????????? #?#?# ##??##### #???? | | ?????????????????????? #???## ##### # ##??#? | | ????????????????????? ?????## #???# | | ????????????????????? ??????## #### ##### | | ???????????????????? ###???????## #### | | ???????????????????? ???????????# ##### % | | ???????????????????? ???????????#%## % ## | | ????????????????????? ?????#????###%# ## ## | | ????????????????????????????????# ## # | | ??????????????????????????#?????# ##### ### | | ????????????????????????????? #??# #?# | | ????????????????????????????##### % #??## ##?# | | ?????????????????????????????? ## ##???####?? | | ???????????????????????????? ? ?####?????????? | | ???????????????????????????? $ ??????????????? | | ???????????????????????????# ??????????????? | | ???????????????????????????# ??????????????? | | ???????????????????????????# ??????#???????? | +----------------------------------------------------+ Best States ------------- Heat Dissipation 39 Energy Generation 18 Energy Capacity 275 Matter Stores 300 Matter Capacity 300 Sight Range 16 Terrain Scan Range 16 Terrain Scan Density 10 ECM Strength 1 Armor Coverage 150 Resistance: KI 20 Resistance: TH 20 Resistance: EX 20 Resistance: EM 20 Resistance: I 20 Resistance: S 20 Resistance: P 20 Evasion (%) 64 Targeting Accuracy 6 Recoil Reduction 2 Salvage Targeting 2 Offensive Hacking 10 Item Schematics ----------------- Cld. VTOL Module | -7/Factory | Scanalyzed Robot Schematics ------------------ None Fabricated ------------ Nothing Alien Tech Used ----------------- None Achievements -------------- Shopping List Challenges ------------ None Game ------ Seed BombLobotomyLoader Manual? 0 Play Time 01:12:59 Cumulative 13.8 hours Start 2024.04.03 @ 08:58:23 End 2024.04.03 @ 11:14:22 Sessions 8 Manual Loads 0 Difficulty Adventurer Special Mode None Game No. 11 Rogue 0 Adventurer 11 Explorer 0 Win Type - Total 0 Types 0/0/0/0/0/0/0/0/0 Lore% 13 Gallery% 18 Achievement% 17 Wizard Run 0 Options --------- Layout 1 ASCII 0 Keyboard 0 Movement Mouse Keybinds 0 Fullscreen 2 Font 16/Tamsyn Map View 25x20 Zoom Use 93% Tactical HUD 1 Map Filters NONE Filters NONE Steam SD RUN: 795a4e22-43c4-47a9-8292-b8b965c5dc81